bitfinex-derivatives/quotes_SOLF0:USTF0_20241029
["timestamp","ask_amount","ask_price","bid_price","bid_amount"]
[1730232579179,2.8045,178.29,178.25,5.26]
[1730232579776,2.8044,178.3,178.25,8.065]
[1730232579975,2.85466145,178.31,178.25,5.26]
[1730232580176,13.45645879,178.32,178.25,5.26]
[1730232580573,8.6225838,178.29,178.25,5.26]
[1730232580879,8.6225838,178.27,178.23,5.26]
[1730232581876,8.6225838,178.27,178.23,13.8825838]
[1730232582281,11.4274838,178.27,178.23,16.6879838]
[1730232583980,11.4274838,178.27,178.23,2.8054]
[1730232584186,11.4274838,178.27,178.23,11.4279838]
[1730232585184,2.74574134,178.29,178.23,8.6225838]
[1730232585386,11.4272838,178.28,178.24,2.8052]
[1730232585788,2.82113182,178.3,178.26,2.8048]
[1730232585984,8.6225838,178.31,178.26,2.8048]
[1730232586186,11.49031342,178.31,178.26,2.8048]
[1730232587292,11.49031342,178.31,178.24,8.6225838]
[1730232587293,1.2868,178.33,178.28,11.4271838]
[1730232587482,9.9093838,178.33,178.28,11.4271838]
[1730232587876,1.2868,178.33,178.28,8.6225838]
[1730232588080,9.9093838,178.33,178.29,2.8045]
[1730232588386,12.7133838,178.33,178.29,2.8045]
[1730232589588,1.3218,178.38,178.32,2.8039]
[1730232589791,8.6225838,178.37,178.31,13.8825838]
[1730232590379,11.4259838,178.37,178.32,2.8039]
[1730232590581,2.8034,178.37,178.32,2.8039]
[1730232591088,2.73772743,178.38,178.31,5.26]
[1730232591290,13.47550788,178.37,178.31,5.26]
[1730232592290,2.8037,178.35,178.31,5.26]
[1730232592485,13.47550788,178.37,178.31,5.26]
[1730232592682,13.47550788,178.39,178.31,5.26]
[1730232593294,13.47550788,178.41,178.34,2.8037]
[1730232593695,13.47550788,178.41,178.31,18.73550788]
[1730232593893,2.8033,178.37,178.33,2.8038]
[1730232594197,13.47550788,178.39,178.31,5.26]
[1730232594389,2.8036,178.36,178.31,8.0642]
[1730232594694,2.8036,178.36,178.31,5.26]
[1730232594897,2.8038,178.34,178.31,5.26]
[1730232595093,13.47550788,178.37,178.31,5.26]
[1730232595593,2.8036,178.35,178.31,5.26]
[1730232595892,13.47550788,178.37,178.31,5.26]
[1730232596087,2.8037,178.35,178.31,5.26]
[1730232596888,2.804,178.33,178.31,5.26]
[1730232597193,13.47550788,178.37,178.31,5.26]
[1730232598799,2.8038,178.34,178.31,5.26]
[1730232600393,2.8035,178.36,178.31,5.26]
[1730232600595,13.47550788,178.39,178.31,5.26]
[1730232600798,13.47550788,178.39,178.32,2.8039]
[1730232600994,13.47550788,178.39,178.31,5.26]
[1730232601394,13.47550788,178.39,178.31,8.0641]
[1730232601694,2.8035,178.36,178.31,8.0641]
[1730232602393,9.24601279,178.4,178.33,2.8039]
[1730232602595,9.24601279,178.4,178.31,5.26]
[1730232602899,22.72152067,178.41,178.31,5.26]
[1730232603099,2.8032,178.38,178.31,5.26]
[1730232603297,22.72152067,178.41,178.33,13.47550788]
[1730232603298,9.24601279,178.41,178.33,13.47550788]
[1730232603498,2.8027,178.41,178.36,2.8033]
[1730232603695,9.24601279,178.42,178.36,5.26]
[1730232603901,9.24601279,178.47,178.38,13.47550788]
[1730232604104,2.8018,178.47,178.42,2.8024]
[1730232604306,13.06181279,178.49,178.42,5.26]
[1730232605193,2.8016,178.48,178.43,2.8023]
[1730232605503,10.59511279,178.49,178.42,5.26]
[1730232605700,1.3491,178.49,178.42,5.26]
[1730232607004,9.24601279,178.5,178.43,13.47550788]
[1730232607197,9.24601279,178.5,178.45,13.47550788]
[1730232607402,2.7418812,178.52,178.43,13.47550788]
[1730232607596,14.70470788,178.53,178.44,5.26]
[1730232607795,23.95072067,178.53,178.44,5.26]
[1730232608105,9.24601279,178.52,178.44,5.26]
[1730232608407,17.47902509,178.53,178.44,5.26]
[1730232608709,9.24601279,178.52,178.48,2.8014]
[1730232608909,9.24601279,178.52,178.49,5.26]
[1730232609605,5.63203347,178.53,178.49,5.26]
[1730232609911,10.51861279,178.57,178.49,5.26]
[1730232609912,23.99412067,178.57,178.49,5.26]
[1730232610097,9.24601279,178.54,178.49,5.26]
[1730232610301,9.24601279,178.56,178.49,5.26]
[1730232610799,2.8009,178.53,178.49,5.26]
[1730232611002,13.47550788,178.55,178.43,13.47550788]
[1730232611201,13.47550788,178.53,178.44,5.26]
[1730232611402,2.8014,178.5,178.44,5.26]
[1730232611602,9.24601279,178.53,178.47,2.8016]
[1730232611794,2.8006,178.54,178.47,13.47550788]
[1730232612202,9.24601279,178.56,178.47,13.47550788]
[1730232612504,2.8007,178.53,178.47,13.47550788]
[1730232612806,9.24601279,178.56,178.47,13.47550788]
[1730232613005,26.78862493,178.57,178.49,2.8012]
[1730232613204,2.8007,178.54,178.5,5.26]
[1730232613412,9.24601279,178.56,178.5,5.26]
[1730232613713,2.8005,178.55,178.5,8.0611]
[1730232614301,4.0727,178.57,178.52,2.8008]
[1730232614503,2.8001,178.57,178.5,18.73550788]
[1730232614903,2.8001,178.57,178.52,2.8009]
[1730232615099,2.8001,178.58,178.5,18.73550788]
[1730232615304,2.79976422,178.59,178.5,18.73550788]
[1730232615705,14.78570788,178.6,178.5,5.26]
[1730232615902,13.47550788,178.57,178.5,5.26]
[1730232616307,2.8004,178.55,178.5,8.0612]
[1730232616509,13.47550788,178.57,178.5,8.0612]
[1730232616909,2.8006,178.55,178.5,5.26]
[1730232617211,9.21784406,178.57,178.52,2.8008]
[1730232617614,9.21784406,178.59,178.52,2.8008]
[1730232617912,17.57154859,178.6,178.52,2.8008]
[1730232618412,14.78570788,178.6,178.5,5.26]
[1730232618601,14.78570788,178.6,178.52,2.8008]
[1730232619010,2.8002,178.57,178.52,2.8008]
[1730232619212,14.78570788,178.6,178.52,2.8008]
[1730232619517,14.78570788,178.6,178.5,5.26]
[1730232619701,14.78570788,178.6,178.51,2.8009]
[1730232620210,14.78570788,178.6,178.5,5.26]
[1730232620405,14.78570788,178.6,178.5,8.0612]
[1730232620611,2.8005,178.55,178.5,8.0612]
[1730232621206,2.8001,178.57,178.5,8.0612]
[1730232621410,24.00355194,178.6,178.5,8.0612]
[1730232621606,9.21784406,178.59,178.5,8.0612]
[1730232622005,2.8005,178.55,178.5,8.0612]
[1730232622717,24.00355194,178.6,178.5,8.0612]
[1730232622905,2.8006,178.54,178.5,8.0612]
[1730232624416,14.78570788,178.6,178.5,8.0612]
[1730232624612,2.8007,178.53,178.5,8.0612]
[1730232625214,2.8003,178.57,178.54,2.8006]
[1730232625419,262.49847434,178.62,178.55,5.24]
[1730232625717,2.8001,178.57,178.55,5.24]
[1730232625914,2.74576272,178.61,178.51,1.2655]
[1730232626111,13.47550788,178.59,178.52,5.24]
[1730232626415,2.8007,178.54,178.52,5.24]
[1730232627115,13.47550788,178.59,178.52,5.24]
[1730232627310,262.49847434,178.62,178.52,5.24]
[1730232627311,275.97398222,178.62,178.52,5.24]
[1730232627714,2.8002,178.57,178.53,2.8007]
[1730232627919,2.7589352,178.6,178.52,5.24]
[1730232628121,275.97398222,178.62,178.52,5.24]
[1730232628514,275.97398222,178.62,178.52,8.0409]
[1730232628719,275.97398222,178.62,178.52,5.24]
[1730232628921,2.8003,178.56,178.52,8.0409]
[1730232629312,2.81330674,178.6,178.52,5.24]
[1730232629514,275.97398222,178.62,178.52,5.24]
[1730232629832,13.47550788,178.59,178.52,5.24]
[1730232630121,2.82227524,178.58,178.52,5.24]
[1730232630622,2.82227524,178.58,178.53,5.24]
[1730232633618,2.8006,178.54,178.53,5.24]
[1730232633814,13.47550788,178.59,178.53,5.24]
[1730232634012,16.24721039,178.59,178.53,5.24]
[1730232634315,2.8005,178.55,178.53,5.24]
[1730232634918,2.8005,178.55,178.53,13.85553589]
[1730232637122,8.61553589,178.58,178.54,8.61553589]
[1730232637621,8.61553589,178.58,178.49,2.6058]
[1730232637622,8.61553589,178.55,178.51,8.61553589]
[1730232637920,2.8007,178.54,178.52,5.24]
[1730232638428,2.8005,178.55,178.52,13.85553589]
[1730232638619,262.49847434,178.62,178.54,8.61553589]
[1730232638821,10.36057264,178.63,178.54,2.8005]
[1730232638822,8.61553589,178.61,178.54,2.8005]
[1730232639124,2.6609,178.63,178.55,8.61553589]
[1730232639125,8.61553589,178.6,178.55,8.61553589]
[1730232639323,2.8002,178.57,178.54,8.61553589]
[1730232640225,2.8002,178.57,178.55,8.61553589]
[1730232640423,2.8001,178.58,178.55,8.61553589]
[1730232640930,2.8001,178.58,178.52,5.24]
[1730232640931,2.8002,178.57,178.54,8.61553589]
[1730232641126,8.61553589,178.57,178.49,2.6058]
[1730232641320,8.61553589,178.57,178.51,8.61553589]
[1730232641521,2.8007,178.54,178.51,8.61553589]
[1730232641818,7.69967264,178.59,178.53,8.61553589]
[1730232642022,7.69967264,178.59,178.5,5.24]
[1730232642023,7.69967264,178.62,178.58,8.61553589]
[1730232642224,8.61553589,178.61,178.56,13.85553589]
[1730232642719,8.61553589,178.59,178.56,5.24]
[1730232642925,8.61553589,178.58,178.56,5.24]
[1730232643130,8.61553589,178.57,178.56,5.24]
[1730232643427,11.41563589,178.57,178.56,5.24]
[1730232649621,2.8008,178.53,178.52,5.24]
[1730232650628,8.61553589,178.53,178.51,5.24]
[1730232651030,2.8009,178.52,178.51,5.24]
[1730232651334,8.61553589,178.52,178.25,5.6103]
[1730232651629,2.5924,178.51,178.45,8.61553589]
[1730232651834,11.20793589,178.51,178.45,8.61553589]
[1730232652031,11.20793589,178.51,178.46,8.61553589]
[1730232652235,8.61553589,178.54,178.48,8.61553589]
[1730232652532,9.89173589,178.55,178.49,8.61553589]
[1730232652726,2.8011,178.51,178.49,8.61553589]
[1730232653633,2.8012,178.5,178.46,5.24]
[1730232653826,2.8012,178.5,178.46,13.85553589]
[1730232655230,2.8015,178.49,178.46,13.85553589]
[1730232657937,8.61553589,178.49,178.46,5.24]
[1730232658133,2.8017,178.47,178.46,5.24]
[1730232658430,8.61553589,178.48,178.42,5.24]
[1730232658837,8.61553589,178.48,178.41,8.61553589]
[1730232658838,2.8017,178.47,178.41,13.85553589]
[1730232659133,8.61553589,178.47,178.41,13.85553589]
[1730232659531,2.8021,178.45,178.41,13.85553589]
[1730232660339,8.61553589,178.5,178.44,8.61553589]
[1730232660536,7.69967264,178.54,178.47,8.61553589]
[1730232660736,2.8012,178.51,178.47,11.41713589]
[1730232660935,8.61553589,178.54,178.49,8.61553589]
[1730232661444,2.801,178.52,178.49,8.61553589]
[1730232662137,2.8011,178.51,178.49,8.61553589]
[1730232662937,1.2913,178.57,178.46,8.0417]
[1730232662938,8.61553589,178.58,178.5,8.61553589]
[1730232663131,8.61553589,178.58,178.53,8.61553589]
[1730232663741,2.8004,178.56,178.53,8.61553589]
[1730232664649,2.8004,178.56,178.54,8.61553589]
[1730232665230,2.8004,178.56,178.53,8.61553589]
[1730232665941,8.61553589,178.59,178.54,8.61553589]
[1730232666841,2.8002,178.57,178.54,8.61553589]
[1730232670943,2.8002,178.57,178.47,3.7963]
[1730232670944,8.61553589,178.59,178.52,2.8008]
[1730232671147,8.61553589,178.53,178.48,5.24]
[1730232671450,8.61553589,178.53,178.47,11.17993589]
[1730232671648,2.8012,178.5,178.47,13.85553589]
[1730232672557,8.61553589,178.5,178.47,5.24]
[1730232673355,2.8018,178.47,178.45,5.24]
[1730232674661,2.802,178.45,178.43,5.24]
[1730232674956,8.61553589,178.45,178.39,5.24]
[1730232675256,2.83468191,178.52,178.41,8.61553589]
[1730232675459,8.61553589,178.48,178.43,8.61553589]
[1730232675649,8.61553589,178.47,178.41,8.61553589]
[1730232675853,2.802,178.46,178.41,11.41813589]
[1730232677549,8.61553589,178.46,178.4,8.61553589]
[1730232677757,8.61553589,178.46,178.4,13.85553589]
[1730232678357,2.8023,178.44,178.4,13.85553589]
[1730232678658,2.8023,178.44,178.26,22.44]
[1730232678659,8.61553589,178.42,178.36,69.15553589]
[1730232678861,8.61553589,178.42,178.37,5.24]
[1730232679262,8.61553589,178.42,178.36,8.61553589]
[1730232679457,2.8027,178.41,178.37,5.24]
[1730232680063,2.8029,178.4,178.37,5.24]
[1730232680957,8.61553589,178.43,178.37,5.24]
[1730232681265,8.61553589,178.44,178.4,8.61553589]
[1730232681466,8.61553589,178.44,178.38,8.61553589]
[1730232681667,2.8024,178.43,178.4,8.61553589]
[1730232682360,2.8022,178.44,178.4,8.61553589]
[1730232682557,8.61553589,178.45,178.4,8.61553589]
[1730232683566,2.8023,178.43,178.4,8.61553589]
[1730232683872,8.61553589,178.43,178.38,8.61553589]
[1730232684063,2.8025,178.42,178.38,8.61553589]
[1730232684268,8.61553589,178.43,178.37,13.85553589]
[1730232684471,8.61553589,178.42,178.37,13.85553589]
[1730232684657,8.61553589,178.4,178.37,5.24]
[1730232685167,11.41833589,178.4,178.37,5.24]
[1730232685669,2.8028,178.4,178.37,5.24]
[1730232686468,8.61553589,178.42,178.37,5.24]
[1730232686668,2.8027,178.41,178.37,5.24]
[1730232687663,2.8027,178.41,178.38,8.61553589]
[1730232689470,8.61553589,178.43,178.38,8.61553589]
[1730232689669,2.8028,178.4,178.38,8.61553589]
[1730232690271,2.8028,178.4,178.37,5.24]
[1730232693280,8.61553589,178.4,178.35,13.83553589]
[1730232693675,2.8031,178.39,178.35,13.83553589]
[1730232693864,8.61553589,178.4,178.35,13.83553589]
[1730232694069,8.61553589,178.38,178.35,5.22]
[1730232694378,8.61553589,178.38,178.32,8.61553589]
[1730232694576,8.61553589,178.38,178.33,5.22]
[1730232694772,2.8035,178.36,178.33,5.22]
[1730232694978,2.8035,178.36,178.32,8.61553589]
[1730232695278,2.8035,178.36,178.32,13.85553589]
[1730232695476,2.8035,178.36,178.32,16.65953589]
[1730232695779,2.8035,178.36,178.33,8.61553589]
[1730232696070,2.8032,178.38,178.35,8.61553589]
[1730232696277,2.8032,178.38,178.36,8.61553589]
[1730232697072,8.61553589,178.41,178.36,8.61553589]
[1730232697973,2.803,178.39,178.36,8.61553589]
[1730232699276,2.803,178.39,178.35,11.41903589]
[1730232699479,2.8032,178.38,178.35,8.61553589]
[1730232699976,2.8032,178.38,178.34,2.8037]
[1730232699977,2.8032,178.38,178.34,11.41923589]
[1730232700280,2.8032,178.38,178.34,8.61553589]
[1730232701373,2.8032,178.38,178.34,11.41923589]
[1730232701573,2.8035,178.36,178.32,5.24]
[1730232701781,8.61553589,178.36,178.33,5.24]
[1730232702279,2.8037,178.34,178.33,5.24]
[1730232702677,1.3235,178.41,178.33,5.24]
[1730232702678,7.69967264,178.52,178.33,13.85553589]
[1730232702978,8.61553589,178.5,178.45,8.61553589]
[1730232703179,2.8016,178.48,178.44,5.24]
[1730232704782,2.8014,178.49,178.45,8.61553589]
[1730232705278,2.8012,178.51,178.46,8.61553589]
[1730232705576,2.8012,178.51,178.45,2.8019]
[1730232705577,11.35838502,178.52,178.47,8.61553589]
[1730232706082,1.3344,178.53,178.49,8.61553589]
[1730232706377,11.25993589,178.54,178.35,1.3091]
[1730232706378,8.61553589,178.54,178.4,60.58]
[1730232706580,13.46747693,178.53,178.41,5.24]
[1730232706876,13.46747693,178.53,178.44,2.802]
[1730232706877,2.74817722,178.52,178.44,2.802]
[1730232708275,2.8014,178.49,178.44,2.802]
[1730232708976,1.3249,178.6,178.45,13.46747693]
[1730232709181,1.3249,178.6,178.47,2.8017]
[1730232709182,2.801,178.52,178.47,2.8017]
[1730232709376,13.46747693,178.57,178.47,5.22]
[1730232709681,1.3042,178.56,178.47,5.22]
[1730232709880,2.801,178.52,178.47,5.22]
[1730232710575,2.8006,178.54,178.47,18.68747693]
[1730232711778,2.8006,178.54,178.49,2.8012]
[1730232712171,2.8004,178.55,178.47,18.68747693]
[1730232712575,2.8004,178.55,178.5,2.8011]
[1730232712781,1.3042,178.56,178.47,18.68747693]
[1730232713072,13.46747693,178.54,178.43,1.2403]
[1730232713274,13.46747693,178.52,178.44,5.22]
[1730232713578,16.23964558,178.52,178.44,5.22]
[1730232714287,2.8015,178.49,178.44,8.0221]
[1730232716481,2.8015,178.48,178.44,8.0221]
[1730232716983,16.26877693,178.5,178.44,5.22]
[1730232717178,13.46747693,178.5,178.44,5.22]
[1730232717588,13.46747693,178.45,178.34,1.2515]
[1730232717880,13.46747693,178.42,178.34,5.22]
[1730232718186,16.3364416,178.42,178.34,5.22]
[1730232718382,13.46747693,178.39,178.34,5.22]
[1730232718577,2.8034,178.37,178.3,5.22]
[1730232718777,13.46747693,178.39,178.28,1.2515]
[1730232718980,13.46747693,178.39,178.29,5.22]
[1730232719180,13.46747693,178.37,178.24,1.3034]
[1730232719377,13.46747693,178.37,178.27,13.46747693]
[1730232719585,1.286,178.41,178.3,13.46747693]
[1730232719882,2.8031,178.38,178.34,2.8037]
[1730232720291,2.8031,178.38,178.33,2.8039]
[1730232720780,1.286,178.41,178.31,5.22]
[1730232720991,1.286,178.41,178.33,13.46747693]
[1730232721684,2.8032,178.38,178.33,16.27117693]
[1730232722284,1.286,178.41,178.33,13.46747693]
[1730232722894,14.75347693,178.41,178.3,13.46747693]
[1730232723090,14.75347693,178.41,178.31,5.22]
[1730232723785,2.8034,178.37,178.32,2.804]
[1730232723984,13.46747693,178.38,178.26,13.46747693]
[1730232724185,13.46747693,178.36,178.27,5.22]
[1730232724390,13.46747693,178.36,178.27,8.0247]
[1730232724391,2.804,178.33,178.27,8.0247]
[1730232724990,13.46747693,178.36,178.27,5.22]
[1730232725188,1.3461,178.35,178.27,18.68747693]
[1730232725586,2.8038,178.34,178.29,2.8045]
[1730232725887,2.8038,178.34,178.27,18.68747693]
[1730232726288,2.8041,178.32,178.27,21.49217693]
[1730232726488,2.8041,178.32,178.27,8.0247]
[1730232727794,13.46747693,178.31,178.21,5.22]
[1730232728191,2.8045,178.29,178.24,2.8052]
[1730232728389,2.82595274,178.32,178.23,13.46747693]
[1730232728590,1.226,178.33,178.23,13.46747693]
[1730232728888,13.46747693,178.32,178.21,5.22]
[1730232729089,2.8147275,178.31,178.21,5.22]
[1730232729690,2.8046,178.29,178.24,2.8053]
[1730232729896,271.22363934,178.43,178.27,13.46747693]
[1730232730093,13.46747693,178.39,178.28,5.22]
[1730232730486,1.2744,178.41,178.28,5.22]
[1730232730487,13.46747693,178.37,178.28,5.22]
[1730232731192,1.2744,178.41,178.29,13.46747693]
[1730232731387,1.2744,178.41,178.32,13.46747693]
[1730232731602,14.74187693,178.41,178.33,5.22]
[1730232732297,1.2744,178.41,178.33,5.22]
[1730232732496,2.803,178.39,178.33,8.0237]
[1730232732694,2.803,178.39,178.33,5.22]
[1730232732997,1.2744,178.41,178.33,5.22]
[1730232733402,2.57,178.42,178.34,13.46747693]
[1730232733593,5.3725,178.42,178.36,2.8033]
[1730232733894,262.77600465,178.43,178.34,13.46747693]
[1730232734098,265.57830465,178.43,178.37,2.8031]
[1730232734290,265.57830465,178.43,178.29,1.3176]
[1730232734291,262.77600465,178.43,178.38,5.22]
[1730232734493,1.2521,178.46,178.38,18.68747693]
[1730232734701,1.3226,178.5,178.41,13.46747693]
[1730232735295,2.8017,178.47,178.41,16.26997693]
[1730232735495,2.8017,178.47,178.41,13.46747693]
[1730232736400,2.8017,178.47,178.42,2.8024]
[1730232736700,2.8017,178.47,178.43,5.22]
[1730232737598,1.3226,178.5,178.43,5.22]
[1730232738203,13.46747693,178.48,178.39,1.3487]
[1730232738401,13.46747693,178.48,178.4,5.22]
[1730232738795,2.8021,178.45,178.4,5.22]
[1730232739399,1.3226,178.5,178.4,18.68747693]
[1730232741005,2.8015,178.49,178.43,2.8022]
[1730232741193,2.8015,178.49,178.4,18.68747693]
[1730232741709,2.8015,178.48,178.43,2.8023]
[1730232742603,13.46747693,178.48,178.34,2.5262]
[1730232742799,13.46747693,178.46,178.34,16.01107693]
[1730232743005,1.3488,178.45,178.35,5.22]
[1730232743199,13.46747693,178.44,178.36,2.8034]
[1730232743400,14.75187693,178.44,178.36,2.8034]
[1730232743602,14.75187693,178.44,178.37,5.22]
[1730232744008,2.8028,178.4,178.37,5.22]
[1730232744208,13.46747693,178.49,178.39,13.46747693]
[1730232744509,2.8016,178.48,178.39,13.46747693]
[1730232744699,1.2844,178.49,178.41,13.46747693]
[1730232744896,1.2844,178.49,178.42,5.22]
[1730232745909,14.75187693,178.49,178.42,5.22]
[1730232746102,1.2844,178.49,178.42,5.22]
[1730232746504,1.3306,178.5,178.42,5.22]
[1730232746700,2.569,178.54,178.42,5.22]
[1730232747198,1.2827,178.54,178.43,21.52989749]
[1730232747403,1.2827,178.54,178.43,22.76789749]
[1730232747708,2.8009,178.52,178.48,2.8015]
[1730232748009,2.8009,178.52,178.49,5.22]
[1730232749413,2.8008,178.53,178.49,5.22]
[1730232749808,1.2827,178.54,178.49,5.22]
[1730232750016,2.801,178.52,178.49,5.22]
[1730232750800,1.2827,178.54,178.49,5.22]
[1730232751005,2.8009,178.52,178.49,5.22]
[1730232751207,2.76764816,178.56,178.49,5.22]
[1730232751808,1.2741,178.57,178.49,5.22]
[1730232752213,4.03605133,178.57,178.49,5.22]
[1730232752517,2.8011,178.52,178.49,5.22]
[1730232752717,2.75466238,178.55,178.49,5.22]
[1730232753012,1.2741,178.57,178.49,5.22]
[1730232753519,2.8009,178.53,178.49,5.22]
[1730232753716,4.13585388,178.57,178.49,5.22]
[1730232755114,1.2741,178.57,178.49,5.22]
[1730232755415,2.8004,178.56,178.51,2.801]
[1730232755908,2.8002,178.57,178.52,2.8008]
[1730232756216,1.3358,178.61,178.49,5.22]
[1730232757518,2.8003,178.56,178.51,2.801]
[1730232757916,1.3358,178.61,178.49,5.22]
[1730232758113,1.3358,178.61,178.52,2.8009]
[1730232758916,1.3358,178.61,178.49,26.74989749]
[1730232759117,2.8003,178.56,178.51,2.801]
[1730232759318,1.3358,178.61,178.49,26.74989749]
[1730232760208,1.3358,178.61,178.52,21.52989749]
[1730232760412,2.7998,178.59,178.54,2.8005]
[1730232760612,2.7998,178.59,178.55,5.22]
[1730232761117,22.86569749,178.61,178.46,21.52989749]
[1730232761309,21.52989749,178.58,178.47,5.22]
[1730232761514,21.52989749,178.58,178.44,1.2871]
[1730232761722,1.2329,178.57,178.45,5.22]
[1730232762220,2.8012,178.51,178.46,2.8017]
[1730232762423,1.2769,178.56,178.46,2.8017]
[1730232762616,21.52989749,178.55,178.46,2.8017]
[1730232762916,21.52989749,178.55,178.47,5.22]
[1730232763119,1.2769,178.56,178.4,21.52989749]
[1730232763120,21.52989749,178.52,178.4,21.52989749]
[1730232763313,2.80677204,178.51,178.41,5.22]
[1730232763512,4.08087204,178.51,178.41,5.22]
[1730232763713,2.8018,178.47,178.41,5.22]
[1730232764314,2.8018,178.47,178.42,8.0225]
[1730232765119,2.8018,178.47,178.43,2.8023]
[1730232765910,2.8015,178.49,178.44,2.802]
[1730232766217,1.2741,178.51,178.44,2.802]
[1730232766717,2.8016,178.48,178.44,2.802]
[1730232766920,1.2741,178.51,178.44,2.8021]
[1730232767117,2.8017,178.48,178.44,2.8021]
[1730232768312,1.2741,178.51,178.44,2.8021]
[1730232768508,2.8017,178.48,178.44,2.8021]
[1730232769313,2.8017,178.47,178.44,2.8021]
[1730232770019,2.8017,178.47,178.43,2.8022]
[1730232771224,2.8019,178.46,178.43,2.8022]
[1730232772610,1.2741,178.51,178.45,13.45639222]
[1730232773220,2.8016,178.48,178.45,13.45639222]
[1730232773622,1.2741,178.51,178.42,18.67639222]
[1730232773818,2.8018,178.47,178.44,2.8021]
[1730232774123,2.8018,178.47,178.42,18.67639222]
[1730232774325,2.8018,178.47,178.45,2.802]
[1730232774524,2.8018,178.47,178.42,18.67639222]
[1730232774731,2.8018,178.47,178.44,2.8021]
[1730232776021,14.73049222,178.51,178.4,13.45639222]
[1730232776223,8.47278819,178.54,178.4,13.45639222]
[1730232776224,13.67278819,178.54,178.41,5.2]
[1730232776427,14.78319222,178.53,178.42,13.45639222]
[1730232777023,14.78319222,178.53,178.44,2.802]
[1730232778224,2.8012,178.51,178.44,2.802]
[1730232778430,14.78319222,178.53,178.44,2.802]
[1730232779231,2.8016,178.48,178.44,2.802]
[1730232780133,2.802,178.45,178.41,8.0026]
[1730232780435,2.802,178.45,178.41,2.8026]
[1730232780638,1.2205,178.5,178.42,5.2]
[1730232781226,2.8016,178.48,178.42,5.2]
[1730232781427,13.45639222,178.49,178.37,14.77459222]
[1730232781627,13.45639222,178.46,178.39,5.2]
[1730232781831,1.299,178.45,178.39,5.2]
[1730232782031,2.8028,178.4,178.39,5.2]
[1730232782833,2.87120659,178.43,178.33,13.45639222]
[1730232783138,2.8031,178.39,178.36,5.2]
[1730232783527,1.299,178.45,178.37,13.45639222]
[1730232783735,1.299,178.45,178.39,2.8028]
[1730232783937,1.299,178.45,178.37,13.45639222]
[1730232784125,2.8023,178.44,178.37,13.45639222]
[1730232784329,2.8023,178.44,178.39,2.8029]
[1730232784538,1.299,178.45,178.4,13.45639222]
[1730232784733,4.101,178.45,178.41,5.2]
[1730232786334,7.646581,178.52,178.41,5.2]
[1730232786539,2.8015,178.49,178.44,2.802]
[1730232786845,2.8015,178.49,178.43,13.45639222]
[1730232786846,10.51806919,178.54,178.46,13.45639222]
[1730232787139,4.0841955,178.53,178.47,5.2]
[1730232787340,1.2194,178.57,178.47,5.2]
[1730232787530,13.00136338,178.57,178.47,5.2]
[1730232787728,4.08356993,178.56,178.47,5.2]
[1730232787937,2.8011,178.51,178.47,5.2]
[1730232789144,16.22267187,178.54,178.47,5.2]
[1730232789340,16.22267187,178.54,178.48,5.2]
[1730232789943,2.8009,178.53,178.48,5.2]
[1730232790144,2.76627965,178.54,178.48,5.2]
[1730232790339,14.67579222,178.57,178.48,5.2]
[1730232790533,4.08569089,178.56,178.48,5.2]
[1730232790737,14.67579222,178.57,178.48,5.2]
[1730232791746,2.8009,178.53,178.48,8.0015]
[1730232791944,7.69839345,178.58,178.48,18.65639222]
[1730232792152,7.69839345,178.6,178.48,18.65639222]
[1730232792345,11.78552714,178.6,178.51,13.45639222]
[1730232792646,1.2391,178.61,178.51,13.45639222]
[1730232793037,2.8,178.58,178.53,2.8007]
[1730232793239,1.2391,178.61,178.54,5.2]
[1730232793440,2.8001,178.57,178.54,5.2]
[1730232794545,2.8002,178.57,178.54,5.2]